[Event "Early-Titled-Tuesday-Blitz-October-10-2023"]
[Site "Chess.com"]
[Date "2023.10.10"]
[Round "6"]
[White "Ural_bogatyr"]
[Black "wannabe2700"]
[Result "1-0"]
[WhiteElo "2535"]
[BlackElo "2655"]
[TimeControl "180+1"]
[EndTime "9:03:46 PDT"]
[Termination "Ural_bogatyr won by resignation"]

1. d4 {[%clk 0:01:45.2]} 1... Nf6 {[%clk 0:03:00.9]} 2. Nc3 {[%clk 0:01:44.7]}
2... Ng4 {[%clk 0:02:24.3]} 3. h3 {[%clk 0:01:38.7]} 3... Nxf2 {[%clk
0:02:24.6]} 4. Kxf2 {[%clk 0:01:38.5]} 4... g6 {[%clk 0:02:25.2]} 5. Nf3 {[%clk
0:01:38.1]} 5... Bg7 {[%clk 0:02:25.8]} 6. e4 {[%clk 0:01:38.7]} 6... O-O {[%clk
0:02:26.7]} 7. Bc4 {[%clk 0:01:36.7]} 7... d6 {[%clk 0:02:27.6]} 8. Rf1 {[%clk
0:01:35.7]} 8... Nc6 {[%clk 0:02:28.5]} 9. Be3 {[%clk 0:01:35.1]} 9... e5 {[%clk
0:02:28.5]} 10. Kg1 {[%clk 0:01:29]} 10... exd4 {[%clk 0:02:25.2]} 11. Nxd4
{[%clk 0:01:28.7]} 11... Ne5 {[%clk 0:02:24.1]} 12. Bb3 {[%clk 0:01:28.3]} 12...
c6 {[%clk 0:02:24.4]} 13. Nf3 {[%clk 0:01:27.3]} 13... Qe7 {[%clk 0:02:21.6]}
14. Bd4 {[%clk 0:01:24.2]} 14... h6 {[%clk 0:02:18.1]} 15. a4 {[%clk 0:01:21.3]}
15... a5 {[%clk 0:02:16.6]} 16. Nxe5 {[%clk 0:01:18.5]} 16... dxe5 {[%clk
0:02:16.8]} 17. Be3 {[%clk 0:01:18.4]} 17... Kh7 {[%clk 0:02:17]} 18. Ne2 {[%clk
0:01:12.3]} 18... f5 {[%clk 0:02:16.6]} 19. exf5 {[%clk 0:01:12.1]} 19... gxf5
{[%clk 0:02:17.5]} 20. c3 {[%clk 0:01:11.9]} 20... f4 {[%clk 0:02:12.3]} 21.
Bc2+ {[%clk 0:01:10.8]} 21... Kh8 {[%clk 0:02:10.2]} 22. Bf2 {[%clk 0:00:52.4]}
22... Rd8 {[%clk 0:02:09.6]} 23. Qe1 {[%clk 0:00:50.9]} 23... Bf6 {[%clk
0:02:10.1]} 24. Rd1 {[%clk 0:00:49.6]} 24... Rg8 {[%clk 0:02:10.6]} 25. Kh2
{[%clk 0:00:44.5]} 25... Be6 {[%clk 0:01:49.8]} 26. Ng1 {[%clk 0:00:40]} 26...
Bc4 {[%clk 0:01:45.5]} 27. Bd3 {[%clk 0:00:36.9]} 27... Bxd3 {[%clk 0:01:39.5]}
28. Rxd3 {[%clk 0:00:37.8]} 28... e4 {[%clk 0:01:40.2]} 29. Bd4 {[%clk
0:00:38.3]} 29... f3 {[%clk 0:01:31.5]} 30. Rdxf3 {[%clk 0:00:34.5]} 30... Qd6+
{[%clk 0:01:21.3]} 31. Rf4 {[%clk 0:00:34.8]} 31... Bxd4 {[%clk 0:01:18.7]} 32.
cxd4 {[%clk 0:00:35.7]} 32... Raf8 {[%clk 0:01:17.7]} 33. Qxe4 {[%clk
0:00:33.7]} 33... Re8 {[%clk 0:01:17.5]} 34. Qf3 {[%clk 0:00:32.5]} 34... Rg7
{[%clk 0:01:12.1]} 35. Kh1 {[%clk 0:00:32]} 35... Reg8 {[%clk 0:01:12.3]} 36.
Rf2 {[%clk 0:00:30.9]} 36... Rg6 {[%clk 0:01:11.5]} 37. Qh5 {[%clk 0:00:29.2]}
37... R8g7 {[%clk 0:01:08.7]} 38. Qe5 {[%clk 0:00:27.9]} 38... Qb4 {[%clk
0:01:08.2]} 39. Rf7 {[%clk 0:00:23.7]} 39... Qxa4 {[%clk 0:01:04.6]} 40. Rxg7
{[%clk 0:00:22.8]} 40... Rxg7 {[%clk 0:01:04.9]} 41. Rf7 {[%clk 0:00:22.9]} 1-0

[Event "Early-Titled-Tuesday-Blitz-October-10-2023"]
[Site "Chess.com"]
[Date "2023.10.10"]
[Round "6"]
[White "scarabee43"]
[Black "FontVella8"]
[Result "1/2-1/2"]
[WhiteElo "2787"]
[BlackElo "2624"]
[TimeControl "180+1"]
[EndTime "9:03:50 PDT"]
[Termination "Game drawn by repetition"]

1. Nf3 {[%clk 0:03:00.9]} 1... d5 {[%clk 0:02:57.9]} 2. e3 {[%clk 0:03:00.7]}
2... Nf6 {[%clk 0:02:57.7]} 3. c4 {[%clk 0:03:00.8]} 3... e6 {[%clk 0:02:58]} 4.
Nc3 {[%clk 0:03:01.3]} 4... Bd6 {[%clk 0:02:58.1]} 5. b3 {[%clk 0:03:01.6]} 5...
O-O {[%clk 0:02:58.5]} 6. Bb2 {[%clk 0:03:02]} 6... c6 {[%clk 0:02:59.1]} 7. Qc2
{[%clk 0:03:01.6]} 7... e5 {[%clk 0:02:58.9]} 8. cxd5 {[%clk 0:02:59.6]} 8...
cxd5 {[%clk 0:02:59.8]} 9. Nb5 {[%clk 0:03:00]} 9... Nc6 {[%clk 0:03:00.3]} 10.
Nxd6 {[%clk 0:02:57.9]} 10... Qxd6 {[%clk 0:03:01.2]} 11. Be2 {[%clk 0:02:57.1]}
11... Bg4 {[%clk 0:02:46.6]} 12. h3 {[%clk 0:02:53.9]} 12... Bh5 {[%clk
0:02:44.4]} 13. d3 {[%clk 0:02:44.7]} 13... Rac8 {[%clk 0:02:43.5]} 14. O-O
{[%clk 0:02:41.2]} 14... Nd4 {[%clk 0:02:31.1]} 15. Qd1 {[%clk 0:02:34.2]} 15...
Nxe2+ {[%clk 0:02:31.1]} 16. Qxe2 {[%clk 0:02:34.9]} 16... e4 {[%clk 0:02:31.7]}
17. dxe4 {[%clk 0:02:34.7]} 17... dxe4 {[%clk 0:02:32]} 18. Qd2 {[%clk
0:02:35.2]} 18... Qxd2 {[%clk 0:02:27.8]} 19. Nxd2 {[%clk 0:02:35.3]} 19... Rc2
{[%clk 0:02:28.5]} 20. Bxf6 {[%clk 0:02:35.4]} 20... Rxd2 {[%clk 0:02:26.1]} 21.
Bd4 {[%clk 0:02:33.8]} 21... Rc8 {[%clk 0:01:07.3]} 22. Bxa7 {[%clk 0:02:27]}
22... Rcc2 {[%clk 0:01:02.6]} 23. a4 {[%clk 0:02:24.7]} 23... Be2 {[%clk
0:00:50.9]} 24. Rfc1 {[%clk 0:02:21.5]} 24... Rxc1+ {[%clk 0:00:51]} 25. Rxc1
{[%clk 0:02:21.2]} 25... Rd1+ {[%clk 0:00:51.7]} 26. Rxd1 {[%clk 0:02:21.3]}
26... Bxd1 {[%clk 0:00:52.5]} 27. Kf1 {[%clk 0:02:19.4]} 27... Bxb3 {[%clk
0:00:52.1]} 28. a5 {[%clk 0:02:20]} 28... f6 {[%clk 0:00:51.6]} 29. Ke2 {[%clk
0:02:20]} 29... Kf7 {[%clk 0:00:51.6]} 30. Kd2 {[%clk 0:02:20.7]} 30... Bc4
{[%clk 0:00:49.6]} 31. g3 {[%clk 0:02:20.1]} 31... Bf1 {[%clk 0:00:49.6]} 32. h4
{[%clk 0:02:20.4]} 32... Ke6 {[%clk 0:00:50.1]} 33. Bc5 {[%clk 0:02:18.6]} 33...
g5 {[%clk 0:00:45.4]} 34. Bd4 {[%clk 0:02:04.6]} 34... Kf5 {[%clk 0:00:42.9]}
35. Kc3 {[%clk 0:02:02.7]} 35... h5 {[%clk 0:00:32]} 36. Kb4 {[%clk 0:01:57.3]}
36... gxh4 {[%clk 0:00:27.3]} 37. gxh4 {[%clk 0:01:56.7]} 37... Kg4 {[%clk
0:00:26.6]} 38. Bxf6 {[%clk 0:01:56.5]} 38... Kf3 {[%clk 0:00:27.2]} 39. Kc5
{[%clk 0:01:51.8]} 39... Kxf2 {[%clk 0:00:26.5]} 40. Bg5 {[%clk 0:01:52.5]}
40... Kf3 {[%clk 0:00:25.2]} 41. Kd6 {[%clk 0:01:49]} 41... Bd3 {[%clk
0:00:22.8]} 42. Ke6 {[%clk 0:01:46.6]} 42... Kg4 {[%clk 0:00:22.3]} 43. Ke5
{[%clk 0:01:47.1]} 43... Bc2 {[%clk 0:00:20.7]} 44. Kd4 {[%clk 0:01:44.8]} 44...
Bd3 {[%clk 0:00:20]} 45. Kc5 {[%clk 0:01:45.5]} 45... Ba6 {[%clk 0:00:18.5]} 46.
Kb6 {[%clk 0:01:43.6]} 46... Kf5 {[%clk 0:00:18.7]} 47. Kc7 {[%clk 0:01:43.4]}
47... Kg4 {[%clk 0:00:18.7]} 48. Kd6 {[%clk 0:01:38.2]} 48... Kf5 {[%clk
0:00:19.6]} 49. Ke7 {[%clk 0:01:34.2]} 49... Bd3 {[%clk 0:00:18.7]} 50. Kf7
{[%clk 0:01:34.1]} 50... Ba6 {[%clk 0:00:19]} 51. Kg7 {[%clk 0:01:34.1]} 51...
Bd3 {[%clk 0:00:18.8]} 52. Kf7 {[%clk 0:01:34.2]} 52... Ba6 {[%clk 0:00:18.8]}
53. Ke7 {[%clk 0:01:34.6]} 53... Bd3 {[%clk 0:00:19.1]} 54. Kd6 {[%clk
0:01:34.9]} 54... Ba6 {[%clk 0:00:19.3]} 55. Kc5 {[%clk 0:01:34.3]} 55... Bd3
{[%clk 0:00:19.2]} 56. Kb6 {[%clk 0:01:33.4]} 56... Ba6 {[%clk 0:00:19.7]} 57.
Bf4 {[%clk 0:01:33.4]} 57... Kg4 {[%clk 0:00:19.5]} 58. Bg5 {[%clk 0:01:33.7]}
58... Kf5 {[%clk 0:00:20]} 1/2-1/2

[Event "Early-Titled-Tuesday-Blitz-October-10-2023"]
[Site "Chess.com"]
[Date "2023.10.10"]
[Round "6"]
[White "LuisFSiles"]
[Black "themind1hunter"]
[Result "1-0"]
[WhiteElo "2347"]
[BlackElo "2516"]
[TimeControl "180+1"]
[EndTime "9:03:53 PDT"]
[Termination "LuisFSiles won by resignation"]

1. e4 {[%clk 0:03:00.9]} 1... c5 {[%clk 0:02:57]} 2. Nf3 {[%clk 0:03:00.5]} 2...
d6 {[%clk 0:02:57.4]} 3. d4 {[%clk 0:03:00.4]} 3... cxd4 {[%clk 0:02:57.7]} 4.
Nxd4 {[%clk 0:03:01.2]} 4... Nf6 {[%clk 0:02:58.3]} 5. Nc3 {[%clk 0:03:01.5]}
5... a6 {[%clk 0:02:59]} 6. Bg5 {[%clk 0:02:59.8]} 6... Nbd7 {[%clk 0:02:53.5]}
7. Bd3 {[%clk 0:02:55.8]} 7... Qb6 {[%clk 0:02:46.9]} 8. Nb3 {[%clk 0:02:54.7]}
8... e6 {[%clk 0:02:46.2]} 9. g4 {[%clk 0:02:46.1]} 9... h5 {[%clk 0:02:35.9]}
10. Be3 {[%clk 0:02:26.1]} 10... Qc7 {[%clk 0:02:35.5]} 11. g5 {[%clk
0:02:12.2]} 11... Ng4 {[%clk 0:02:35.5]} 12. Bd4 {[%clk 0:02:12.6]} 12... Nge5
{[%clk 0:02:28.5]} 13. f4 {[%clk 0:02:09.9]} 13... Nxd3+ {[%clk 0:02:25.4]} 14.
cxd3 {[%clk 0:02:06.6]} 14... Nc5 {[%clk 0:02:13.7]} 15. g6 {[%clk 0:01:59.5]}
15... f6 {[%clk 0:01:54.1]} 16. f5 {[%clk 0:01:57.4]} 16... Nxb3 {[%clk
0:01:38.8]} 17. Qxb3 {[%clk 0:01:49.8]} 17... d5 {[%clk 0:01:35.1]} 18. fxe6
{[%clk 0:01:18.3]} 18... dxe4 {[%clk 0:00:56.4]} 19. Nd5 {[%clk 0:01:00.9]}
19... Qa5+ {[%clk 0:00:53.8]} 20. Bc3 {[%clk 0:00:59.3]} 20... Qc5 {[%clk
0:00:42.7]} 21. Bb4 {[%clk 0:00:31.6]} 21... Qc6 {[%clk 0:00:39.2]} 22. e7
{[%clk 0:00:27.5]} 22... Be6 {[%clk 0:00:30.8]} 23. exf8=Q+ {[%clk 0:00:20.2]}
23... Rxf8 {[%clk 0:00:31.7]} 24. Nc7+ {[%clk 0:00:15.6]} 1-0

[Event "Early-Titled-Tuesday-Blitz-October-10-2023"]
[Site "Chess.com"]
[Date "2023.10.10"]
[Round "6"]
[White "kidagent"]
[Black "RodTwinkz"]
[Result "0-1"]
[WhiteElo "2251"]
[BlackElo "2790"]
[TimeControl "180+1"]
[EndTime "9:04:04 PDT"]
[Termination "RodTwinkz won by resignation"]

1. c4 {[%clk 0:03:00.9]} 1... Nf6 {[%clk 0:02:59.3]} 2. Nc3 {[%clk 0:02:59.3]}
2... g6 {[%clk 0:02:58.2]} 3. g3 {[%clk 0:02:58.8]} 3... Bg7 {[%clk 0:02:58.1]}
4. Bg2 {[%clk 0:02:59.6]} 4... O-O {[%clk 0:02:58.8]} 5. d4 {[%clk 0:02:59.5]}
5... c5 {[%clk 0:02:58.4]} 6. d5 {[%clk 0:02:59.2]} 6... d6 {[%clk 0:02:58.9]}
7. e4 {[%clk 0:02:58]} 7... Na6 {[%clk 0:02:55.1]} 8. Nf3 {[%clk 0:02:56.6]}
8... Nc7 {[%clk 0:02:55.1]} 9. O-O {[%clk 0:02:55.9]} 9... Rb8 {[%clk
0:02:55.1]} 10. Re1 {[%clk 0:02:55.2]} 10... b5 {[%clk 0:02:52.5]} 11. cxb5
{[%clk 0:02:50.1]} 11... Nxb5 {[%clk 0:02:53.4]} 12. Bd2 {[%clk 0:02:45.7]}
12... Nd4 {[%clk 0:02:47.7]} 13. Nxd4 {[%clk 0:02:36.9]} 13... cxd4 {[%clk
0:02:47]} 14. Na4 {[%clk 0:02:36.6]} 14... Bd7 {[%clk 0:02:28.4]} 15. b3 {[%clk
0:02:34.5]} 15... Ng4 {[%clk 0:02:24.2]} 16. Rb1 {[%clk 0:02:22]} 16... Ne5
{[%clk 0:02:19.2]} 17. Nb2 {[%clk 0:02:20.6]} 17... Bb5 {[%clk 0:02:07.5]} 18.
Bf1 {[%clk 0:02:08.9]} 18... Bxf1 {[%clk 0:02:01.8]} 19. Kxf1 {[%clk 0:02:07.8]}
19... f5 {[%clk 0:01:53.4]} 20. Bf4 {[%clk 0:01:48.1]} 20... Qa5 {[%clk
0:01:42.3]} 21. a4 {[%clk 0:01:37.6]} 21... fxe4 {[%clk 0:01:21.1]} 22. Rxe4
{[%clk 0:01:36.3]} 22... Qc3 {[%clk 0:01:15.8]} 23. Qxd4 {[%clk 0:01:01.6]}
23... Qxd4 {[%clk 0:01:05.3]} 24. Rxd4 {[%clk 0:00:59.9]} 24... Rxb3 {[%clk
0:01:06]} 25. Rdd1 {[%clk 0:00:54.3]} 25... Rfb8 {[%clk 0:01:04.3]} 26. Bc1
{[%clk 0:00:50.4]} 26... Nc4 {[%clk 0:00:48.7]} 27. Nxc4 {[%clk 0:00:38]} 27...
Rxb1 {[%clk 0:00:49.6]} 28. Na3 {[%clk 0:00:31.1]} 28... Ra1 {[%clk 0:00:46.1]}
29. Nc2 {[%clk 0:00:31]} 29... Ra2 {[%clk 0:00:46.1]} 30. Ne1 {[%clk 0:00:21.9]}
30... Rb1 {[%clk 0:00:42.3]} 31. Nd3 {[%clk 0:00:19.5]} 31... Rc2 {[%clk
0:00:36.4]} 32. Ke1 {[%clk 0:00:17.8]} 32... Bc3+ {[%clk 0:00:35.4]} 33. Kf1
{[%clk 0:00:18.1]} 33... Bd2 {[%clk 0:00:33.6]} 0-1

[Event "Early-Titled-Tuesday-Blitz-October-10-2023"]
[Site "Chess.com"]
[Date "2023.10.10"]
[Round "6"]
[White "Rutricks"]
[Black "Orest_Vovk"]
[Result "1-0"]
[WhiteElo "2679"]
[BlackElo "2523"]
[TimeControl "180+1"]
[EndTime "9:04:05 PDT"]
[Termination "Rutricks won on time"]

1. Nf3 {[%clk 0:03:00.9]} 1... h6 {[%clk 0:02:58.5]} 2. b4 {[%clk 0:02:59.1]}
2... g5 {[%clk 0:02:57.3]} 3. Bb2 {[%clk 0:02:59.6]} 3... Nf6 {[%clk 0:02:56.4]}
4. h4 {[%clk 0:02:59.3]} 4... g4 {[%clk 0:02:53.7]} 5. Ne5 {[%clk 0:02:57.5]}
5... d6 {[%clk 0:02:48.4]} 6. Nc4 {[%clk 0:02:57.8]} 6... g3 {[%clk 0:02:46.3]}
7. f3 {[%clk 0:02:49.4]} 7... Bg7 {[%clk 0:02:36.8]} 8. e4 {[%clk 0:02:46.3]}
8... Nh5 {[%clk 0:02:32.3]} 9. Bxg7 {[%clk 0:02:44.6]} 9... Nxg7 {[%clk
0:02:33.2]} 10. d4 {[%clk 0:02:44.6]} 10... Nh5 {[%clk 0:02:09.1]} 11. Qd2
{[%clk 0:02:44.3]} 11... b5 {[%clk 0:01:53.3]} 12. Ne3 {[%clk 0:02:42.1]} 12...
a6 {[%clk 0:01:51.3]} 13. a4 {[%clk 0:02:42]} 13... bxa4 {[%clk 0:01:47.7]} 14.
Rxa4 {[%clk 0:02:42.5]} 14... Bb7 {[%clk 0:01:34]} 15. Ra5 {[%clk 0:02:40.1]}
15... Nf6 {[%clk 0:01:21.4]} 16. Nf5 {[%clk 0:02:15.9]} 16... Nc6 {[%clk
0:01:21.1]} 17. Ra1 {[%clk 0:02:15.1]} 17... Nh5 {[%clk 0:00:54.9]} 18. Be2
{[%clk 0:01:58.4]} 18... e6 {[%clk 0:00:50.1]} 19. Ne3 {[%clk 0:01:58.5]} 19...
Nf4 {[%clk 0:00:34.2]} 20. Bf1 {[%clk 0:01:59]} 20... Qf6 {[%clk 0:00:26.9]} 21.
c3 {[%clk 0:01:59.5]} 21... h5 {[%clk 0:00:24.6]} 22. Na3 {[%clk 0:01:59.6]}
22... e5 {[%clk 0:00:17.6]} 23. d5 {[%clk 0:01:59.2]} 23... Ne7 {[%clk
0:00:17.3]} 24. Nac4 {[%clk 0:01:59.4]} 24... Neg6 {[%clk 0:00:12.7]} 25. Nf5
{[%clk 0:01:59.7]} 25... Bc8 {[%clk 0:00:09.2]} 26. Nce3 {[%clk 0:01:59.5]}
26... Bxf5 {[%clk 0:00:07.2]} 27. Nxf5 {[%clk 0:02:00.4]} 27... Ne7 {[%clk
0:00:07.4]} 28. Ne3 {[%clk 0:01:53.5]} 28... Neg6 {[%clk 0:00:04.3]} 29. Rxa6
{[%clk 0:01:48.9]} 29... Rxa6 {[%clk 0:00:03.6]} 30. Bxa6 {[%clk 0:01:49.8]}
30... Nxh4 {[%clk 0:00:03.8]} 31. Bb5+ {[%clk 0:01:50.7]} 31... Kf8 {[%clk
0:00:03.4]} 32. Kd1 {[%clk 0:01:46.2]} 32... Nhg6 {[%clk 0:00:03.1]} 33. Kc2
{[%clk 0:01:45.5]} 33... h4 {[%clk 0:00:03.5]} 34. Nf5 {[%clk 0:01:45.9]} 34...
h3 {[%clk 0:00:03.2]} 35. Ra1 {[%clk 0:01:46.2]} 35... Kg8 {[%clk 0:00:01.2]}
36. gxh3 {[%clk 0:01:33.2]} 36... Kh7 {[%clk 0:00:01.9]} 37. Kb3 {[%clk
0:01:34.1]} 37... Rg8 {[%clk 0:00:02]} 38. Nxg3 {[%clk 0:01:27.2]} 38... Nh4
{[%clk 0:00:02.3]} 39. Qf2 {[%clk 0:01:27.9]} 39... Nfg6 {[%clk 0:00:01.5]} 40.
Rf1 {[%clk 0:01:24.5]} 40... Qf4 {[%clk 0:00:01.6]} 41. Bd7 {[%clk 0:01:19.2]}
41... Qg5 {[%clk 0:00:02.1]} 42. Bf5 {[%clk 0:01:19.3]} 42... Re8 {[%clk
0:00:02]} 43. Rg1 {[%clk 0:01:14.5]} 43... Kg7 {[%clk 0:00:02.6]} 44. Bxg6
{[%clk 0:01:13.8]} 44... Qxg6 {[%clk 0:00:02.6]} 45. Nf5+ {[%clk 0:01:14.2]}
45... Kf6 {[%clk 0:00:02.4]} 46. Qxh4+ {[%clk 0:01:13.7]} 1-0

[Event "Early-Titled-Tuesday-Blitz-October-10-2023"]
[Site "Chess.com"]
[Date "2023.10.10"]
[Round "6"]
[White "MartinMatthiesen"]
[Black "NowInChess"]
[Result "1-0"]
[WhiteElo "2471"]
[BlackElo "2228"]
[TimeControl "180+1"]
[EndTime "9:04:05 PDT"]
[Termination "MartinMatthiesen won on time"]

1. Nf3 {[%clk 0:03:00.9]} 1... Nf6 {[%clk 0:02:59.5]} 2. c4 {[%clk 0:02:59]}
2... g6 {[%clk 0:02:59.8]} 3. Nc3 {[%clk 0:02:58.6]} 3... Bg7 {[%clk 0:03:00.5]}
4. g3 {[%clk 0:02:58.5]} 4... O-O {[%clk 0:03:01.1]} 5. Bg2 {[%clk 0:02:58.8]}
5... d6 {[%clk 0:03:01.1]} 6. O-O {[%clk 0:02:58.8]} 6... e5 {[%clk 0:03:01.4]}
7. d4 {[%clk 0:02:58.2]} 7... Nc6 {[%clk 0:02:48.3]} 8. dxe5 {[%clk 0:02:52.1]}
8... dxe5 {[%clk 0:02:48.3]} 9. Bg5 {[%clk 0:02:51.6]} 9... Qxd1 {[%clk
0:02:26.1]} 10. Raxd1 {[%clk 0:02:46.2]} 10... Be6 {[%clk 0:02:27]} 11. Nd5
{[%clk 0:02:30.3]} 11... Ne8 {[%clk 0:02:12.2]} 12. b3 {[%clk 0:01:59.9]} 12...
f6 {[%clk 0:02:03.7]} 13. Be3 {[%clk 0:01:58.2]} 13... Kf7 {[%clk 0:01:58.7]}
14. Nd2 {[%clk 0:01:53.9]} 14... Nd4 {[%clk 0:01:39.8]} 15. Bxd4 {[%clk
0:01:42.4]} 15... exd4 {[%clk 0:01:40.7]} 16. Ne4 {[%clk 0:01:40.4]} 16... c6
{[%clk 0:01:14.7]} 17. Nf4 {[%clk 0:01:39.3]} 17... Bc8 {[%clk 0:00:28.9]} 18.
Rxd4 {[%clk 0:01:28.4]} 18... Kg8 {[%clk 0:00:27.4]} 19. Rd2 {[%clk 0:01:19.2]}
19... Bf5 {[%clk 0:00:20.9]} 20. Rfd1 {[%clk 0:01:12.1]} 20... Bxe4 {[%clk
0:00:15.5]} 21. Bxe4 {[%clk 0:01:11.6]} 21... f5 {[%clk 0:00:11.8]} 22. Bf3
{[%clk 0:01:09.5]} 22... Nf6 {[%clk 0:00:12.3]} 23. Ne6 {[%clk 0:01:07.5]} 23...
Rfe8 {[%clk 0:00:11.2]} 24. Nc7 {[%clk 0:01:07.4]} 24... Rac8 {[%clk 0:00:08.4]}
25. Nxe8 {[%clk 0:01:07.1]} 25... Rxe8 {[%clk 0:00:09.3]} 26. Rd8 {[%clk
0:01:07.1]} 26... Kf7 {[%clk 0:00:09.9]} 27. Rxe8 {[%clk 0:01:06.8]} 27... Kxe8
{[%clk 0:00:10.8]} 28. b4 {[%clk 0:01:06.7]} 28... Nd7 {[%clk 0:00:09.6]} 29. b5
{[%clk 0:01:05.3]} 29... cxb5 {[%clk 0:00:09]} 30. cxb5 {[%clk 0:01:06.2]} 30...
Nc5 {[%clk 0:00:08.7]} 31. Bd5 {[%clk 0:01:01.2]} 31... b6 {[%clk 0:00:08.1]}
32. Bg8 {[%clk 0:01:00.8]} 32... h6 {[%clk 0:00:07.7]} 33. Bh7 {[%clk
0:01:01.1]} 33... Kf7 {[%clk 0:00:07.8]} 34. Rd6 {[%clk 0:00:58.2]} 34... Be5
{[%clk 0:00:07.1]} 35. Bxg6+ {[%clk 0:00:55.9]} 35... Kg7 {[%clk 0:00:03.4]} 36.
Rc6 {[%clk 0:00:56]} 36... Ne4 {[%clk 0:00:01.1]} 37. Bxf5 {[%clk 0:00:53.4]}
1-0

[Event "Early-Titled-Tuesday-Blitz-October-10-2023"]
[Site "Chess.com"]
[Date "2023.10.10"]
[Round "6"]
[White "sergiochess83"]
[Black "play1ngtheangel"]
[Result "0-1"]
[WhiteElo "2868"]
[BlackElo "2670"]
[TimeControl "180+1"]
[EndTime "9:04:10 PDT"]
[Termination "play1ngtheangel won by checkmate"]

1. d4 {[%clk 0:02:50.2]} 1... Nf6 {[%clk 0:02:59.1]} 2. c4 {[%clk 0:02:49.8]}
2... e6 {[%clk 0:02:58.2]} 3. g3 {[%clk 0:02:49]} 3... d5 {[%clk 0:02:58.3]} 4.
Bg2 {[%clk 0:02:48.6]} 4... dxc4 {[%clk 0:02:58.8]} 5. Nf3 {[%clk 0:02:48.2]}
5... Nbd7 {[%clk 0:02:59.3]} 6. O-O {[%clk 0:02:46.8]} 6... c6 {[%clk
0:02:59.2]} 7. a4 {[%clk 0:02:34]} 7... b6 {[%clk 0:02:56.5]} 8. Nbd2 {[%clk
0:02:20.6]} 8... Ba6 {[%clk 0:02:55.6]} 9. Qc2 {[%clk 0:02:08.9]} 9... c3 {[%clk
0:02:55.6]} 10. bxc3 {[%clk 0:02:05.1]} 10... Bxe2 {[%clk 0:02:54.2]} 11. Re1
{[%clk 0:02:04.8]} 11... Ba6 {[%clk 0:02:54.6]} 12. a5 {[%clk 0:01:42.9]} 12...
Be7 {[%clk 0:02:53.4]} 13. Ng5 {[%clk 0:01:39.2]} 13... Qc8 {[%clk 0:02:40.8]}
14. Bh3 {[%clk 0:01:13.1]} 14... O-O {[%clk 0:02:34.4]} 15. c4 {[%clk
0:01:06.7]} 15... h6 {[%clk 0:02:33.1]} 16. Nxe6 {[%clk 0:00:54.9]} 16... fxe6
{[%clk 0:02:32.5]} 17. Bxe6+ {[%clk 0:00:55.8]} 17... Kh8 {[%clk 0:02:31.8]} 18.
Bb2 {[%clk 0:00:55.9]} 18... Qc7 {[%clk 0:02:13.6]} 19. Nf3 {[%clk 0:00:55.8]}
19... Rfd8 {[%clk 0:01:56.7]} 20. Bf5 {[%clk 0:00:34.3]} 20... Nf8 {[%clk
0:01:55.3]} 21. Ne5 {[%clk 0:00:33.9]} 21... Bd6 {[%clk 0:01:51.2]} 22. Re3
{[%clk 0:00:31.4]} 22... bxa5 {[%clk 0:01:44.8]} 23. Rae1 {[%clk 0:00:27.9]}
23... Rab8 {[%clk 0:01:35.7]} 24. Ba1 {[%clk 0:00:24.3]} 24... Re8 {[%clk
0:01:26.3]} 25. h4 {[%clk 0:00:23.3]} 25... Rbd8 {[%clk 0:01:21.4]} 26. g4
{[%clk 0:00:22.6]} 26... Bc8 {[%clk 0:01:21.4]} 27. g5 {[%clk 0:00:21.6]} 27...
Bxe5 {[%clk 0:01:14]} 28. dxe5 {[%clk 0:00:19.2]} 28... Ng8 {[%clk 0:01:10.9]}
29. e6 {[%clk 0:00:17.1]} 29... Qf4 {[%clk 0:01:00.8]} 30. Rg3 {[%clk
0:00:09.6]} 30... Bxe6 {[%clk 0:00:55.3]} 31. gxh6 {[%clk 0:00:09.3]} 31... Bxf5
{[%clk 0:00:53.2]} 32. hxg7+ {[%clk 0:00:09.2]} 32... Kh7 {[%clk 0:00:53.8]} 33.
gxf8=Q {[%clk 0:00:03.4]} 33... Rxe1+ {[%clk 0:00:43.8]} 34. Kh2 {[%clk
0:00:03.7]} 34... Qxh4+ {[%clk 0:00:43.8]} 35. Kg2 {[%clk 0:00:02.4]} 35... Qh1#
{[%clk 0:00:44.1]} 0-1

[Event "Early-Titled-Tuesday-Blitz-October-10-2023"]
[Site "Chess.com"]
[Date "2023.10.10"]
[Round "6"]
[White "Amirreza_p"]
[Black "slorovel"]
[Result "1-0"]
[WhiteElo "2601"]
[BlackElo "2504"]
[TimeControl "180+1"]
[EndTime "9:04:10 PDT"]
[Termination "Amirreza_p won on time"]

1. e4 {[%clk 0:03:00.9]} 1... c5 {[%clk 0:02:57]} 2. Nf3 {[%clk 0:03:01.1]} 2...
Nc6 {[%clk 0:02:55.9]} 3. d4 {[%clk 0:02:59.5]} 3... cxd4 {[%clk 0:02:56.8]} 4.
Nxd4 {[%clk 0:02:59.5]} 4... Nf6 {[%clk 0:02:56.5]} 5. Nc3 {[%clk 0:02:58.9]}
5... e5 {[%clk 0:02:56.6]} 6. Nde2 {[%clk 0:02:54.5]} 6... Bb4 {[%clk
0:02:55.5]} 7. a3 {[%clk 0:02:53.6]} 7... Ba5 {[%clk 0:02:54.4]} 8. b4 {[%clk
0:02:53.8]} 8... Bc7 {[%clk 0:02:54.6]} 9. Ng3 {[%clk 0:02:52.4]} 9... O-O
{[%clk 0:02:53.6]} 10. Bd3 {[%clk 0:02:49.5]} 10... Ne7 {[%clk 0:02:51.9]} 11.
Bg5 {[%clk 0:02:47.7]} 11... d6 {[%clk 0:02:40.2]} 12. Bxf6 {[%clk 0:02:41.9]}
12... gxf6 {[%clk 0:02:41.1]} 13. Qh5 {[%clk 0:02:41.6]} 13... Kh8 {[%clk
0:02:35]} 14. Nd5 {[%clk 0:02:38.4]} 14... Ng6 {[%clk 0:02:30]} 15. Nf5 {[%clk
0:02:34.3]} 15... Be6 {[%clk 0:02:12.8]} 16. g3 {[%clk 0:02:19.3]} 16... Rg8
{[%clk 0:02:06.9]} 17. h4 {[%clk 0:02:16.5]} 17... a5 {[%clk 0:02:02]} 18. b5
{[%clk 0:02:13.1]} 18... Bxd5 {[%clk 0:01:57.7]} 19. exd5 {[%clk 0:02:11.6]}
19... e4 {[%clk 0:01:56.3]} 20. Bxe4 {[%clk 0:02:07.4]} 20... Qe8 {[%clk
0:01:56.5]} 21. f3 {[%clk 0:02:03.2]} 21... Qe5 {[%clk 0:01:51.6]} 22. O-O
{[%clk 0:01:52.5]} 22... Nf4 {[%clk 0:01:42.8]} 23. Qh6 {[%clk 0:01:44.8]} 23...
Rg6 {[%clk 0:01:40.9]} 24. Kh2 {[%clk 0:01:39.4]} 24... Rxh6 {[%clk 0:01:35.3]}
25. Nxh6 {[%clk 0:01:40.3]} 25... Qh5 {[%clk 0:01:27.1]} 26. Nf5 {[%clk
0:01:37.7]} 26... Rg8 {[%clk 0:00:48.3]} 27. gxf4 {[%clk 0:01:31.2]} 27... Bb6
{[%clk 0:00:47.3]} 28. Rae1 {[%clk 0:01:14.7]} 28... Re8 {[%clk 0:00:26.2]} 29.
Kh3 {[%clk 0:01:03.6]} 29... Bc5 {[%clk 0:00:13.7]} 30. a4 {[%clk 0:00:59.4]}
30... Rg8 {[%clk 0:00:13.4]} 31. Re2 {[%clk 0:00:56.5]} 31... b6 {[%clk
0:00:12.6]} 32. Rh1 {[%clk 0:00:51.1]} 32... h6 {[%clk 0:00:12.5]} 33. Rhh2
{[%clk 0:00:48.5]} 33... Ba3 {[%clk 0:00:03.7]} 34. Rhg2 {[%clk 0:00:46.2]}
34... Rxg2 {[%clk 0:00:02.6]} 35. Rxg2 {[%clk 0:00:45.6]} 1-0